Cogmind - Beta 15 @@@ ROGUE MODE // 2025.06.15 @ 12:40:38 // Winter2019/RPGLIKE Player: Jack Result: Destroyed by Y-54 Guardian with Flak Gun Performance ------------- Evolutions (3) 1500 Regions Visited (4) 800 Robots Destroyed (37) 185 Value Destroyed (1129) 1129 Prototype IDs (0) 0 Alien Tech Used (0) 0 Bonus (0) 0 TOTAL SCORE: 3614 Bonus ------- None Cogmind --------- Core Integrity 0/800 Matter 300/300 Energy 3/265 System Corruption 1% Temperature Cool (16) Movement Hovering (56) Location -7/Factory Parts ------- > --- POWER (1) -------- Improved Ion Engine > --- PROPULSION (2) --- Airjet Airjet > --- UTILITY (1) ------ Shield Generator > --- WEAPON (4) ------- Assault Rifle Light Assault Rifle Katana Katana > --- INVENTORY (1) ---- (None) Peak State ------------ > --- POWER ------------ Improved Ion Engine > --- PROPULSION ------- Airjet Airjet > --- UTILITY ---------- Shield Generator > --- WEAPON ----------- Assault Rifle Light Assault Rifle Katana Katana > --- INVENTORY -------- (None) [Rating: 18] Favorites ----------- Power Improved Ion Engine Engine Improved Ion Engine Propulsion Airjet Hover Unit Airjet Flight Unit Flight Unit Utility Shield Generator Device Shield Generator Weapon Light Assault Rifle Energy Gun Small Laser Ballistic Gun Light Assault Rifle Slashing Weapon Katana Build | -11 -10 -9 -8 -7 ------- Run | Yrd Mat Mat Mat Fac Slots Evolved 4 | 4 . . . . Power . | . . . . . Propulsion 1 | 1 . . . . Utility . | . . . . . Weapon 3 | 3 . . . . Parts Attached 21 | 2 4 1 11 3 Power 2 | . . . 2 . Engine 2 | . . . 2 . Core . | . . . . . Reactor . | . . . . . Propulsion 7 | . 2 . 5 . Treads . | . . . . . Leg . | . . . . . Wheel . | . . . . . Hover 2 | . . . 2 . Flight 5 | . 2 . 3 . Utility 1 | . . . . 1 Device 1 | . . . . 1 Storage . | . . . . . Processor . | . . . . . Hackware . | . . . . . Protection . | . . . . . Artifact . | . . . . . Weapon 11 | 2 2 1 4 2 Energy Gun 2 | 2 . . . . Energy Cannon . | . . . . . Ballistic Gun 7 | . 2 1 4 . Ballistic Cannon . | . . . . . Launcher . | . . . . . Special Weapon . | . . . . . Impact Weapon . | . . . . . Slashing Weapon 2 | . . . . 2 Piercing Weapon . | . . . . . Special Melee Weapon . | . . . . . Unidentified Prototypes . | . . . . . Parts Lost . | . . . . . Power . | . . . . . Propulsion . | . . . . . Utility . | . . . . . Weapon . | . . . . . Highest Loss Streak . | . . . . . To Critical Strikes . | . . . . . Average Backups . | . . . . . Power . | . . . . . Propulsion . | . . . . . Utility . | . . . . . Weapon . | . . . . . Tool/Special . | . . . . . Unused Backups . | . . . . . Power . | . . . . . Propulsion . | . . . . . Utility . | . . . . . Weapon . | . . . . . Tool/Special . | . . . . . Average Slot Usage (%) 81 | . 40 69 82 97 Engine 7 | . . . 9 12 Hover 11 | . . . 5 25 Flight 11 | . 10 25 19 . Device 3 | . . . . 9 Energy Gun 5 | . 25 14 . . Ballistic Gun 36 | . 5 30 47 40 Slashing Weapon 3 | . . . . 9 Peak Build Rating 18 | 2 6 7 13 18 Average Rating 10 | 1 3 6 9 15 On Entrance 5 | . 2 6 6 13 Naked Turns . | . . . . . Heaviest Build 16 | 2 4 5 14 16 Greatest Support 21 | 8 13 13 21 21 Greatest Overweight (x) . | . . . . . Average Overweight (x) . | . . . . . Largest Inventory Capacity 1 | . . . . 1 Average Capacity . | . . . . . Most Carried 1 | . . . . 1 Average Carried . | . . . . . Final Capacity 1 | . . . . 1 Final Carried . | . . . . . Class Distribution -------------------- 47% | Hacker-Gunner 26% | Scavenger-Gunner 13% | Hacker-Gladiator 11% | Mutant Dominant Class ---------------- Mutant | -10/Materials Scavenger-Gunner | -9/Materials Hacker-Gunner | -8/Materials Hacker-Gunner | -7/Factory Resources | -11 -10 -9 -8 -7 ----------- Run | Yrd Mat Mat Mat Fac Matter Collected 808 | 188 78 76 346 120 Remotely . | . . . . . Salvage Created 1462 | 87 116 401 505 353 Parts 82 | 5 6 18 27 26 Haulers Intercepted . | . . . . . Recyclers Shooed 1 | . . 1 . . Parts Field Recycled . | . . . . . Retrieved Matter . | . . . . . Parts Self-Destructed . | . . . . . Prevented . | . . . . . Kills | -11 -10 -9 -8 -7 ------- Run | Yrd Mat Mat Mat Fac Combat Hostiles Destroyed 32 | . 3 9 12 8 Melee 3 | . . . . 3 Guns 29 | . 3 9 12 5 Classes Destroyed 8 | 2 1 2 . 3 Builder 1 | . . . . 1 Tunneler 1 | 1 . . . . Recycler 2 | 1 1 . . . Watcher 1 | . . . . 1 Swarmer 14 | . 3 3 4 4 Grunt 12 | . . 5 5 2 Sentry 5 | . . 1 3 1 Programmer 1 | . . . . 1 Best Kill Streak 6 | 2 3 6 4 4 Combat Bots Only 6 | . 3 6 4 4 Max Kills in Single Turn 2 | 1 1 1 2 1 Gunslinging 1 | . . . 1 . Exploded . | . . . . . Melee 1 | . . . . 1 Uniques/NPCs Destroyed . | . . . . . Combat | -11 -10 -9 -8 -7 -------- Run | Yrd Mat Mat Mat Fac Hostile Shots Fired 239 | . 17 24 53 145 Missed 83 | . 4 8 11 60 Hits 156 | . 13 16 42 85 Projectile 156 | . 13 16 42 85 Critical Strikes 4 | . . . 2 2 Damage Taken 1620 | . 114 276 557 673 Core 1301 | . 102 222 446 531 Absorbed by Shields 239 | . . . . 239 Redirected to Core 1016 | . 36 187 381 412 Core Remaining (%) 66 | 100 83 46 37 . Volleys Fired 77 | 4 11 19 33 10 Largest 4 | 2 4 4 4 4 Hottest 120 | 80 120 120 83 83 Shots Fired 272 | 8 26 70 128 40 Gun 272 | 8 26 70 128 40 Cannon . | . . . . . Launcher . | . . . . . Special . | . . . . . Kinetic 218 | . 6 44 128 40 Thermal 54 | 8 20 26 . . Explosive . | . . . . . Electromagnetic . | . . . . . Robot Hit Streak 13 | 3 5 8 13 6 Robot Miss Streak 8 | 1 4 8 4 3 Penetration Max . | . . . . . Secondary Targets 5 | . 2 . 2 1 Max Gunslinging Chain 1 | . 1 . 1 1 Shots Hit Robots 169 | 3 12 35 84 35 Core Hits 79 | 3 6 19 33 18 Critical Kills 1 | . . . . 1 Critical Parts Destroyed 2 | . . . 2 . Critical Strikes 4 | . . . 2 2 Destroy 3 | . . . 2 1 Sever 1 | . . . . 1 Melee Attacks 30 | . . . . 30 Impact . | . . . . . Slashing 30 | . . . . 30 Piercing . | . . . . . Sneak Attacks 2 | . . . . 2 Combat Hostiles . | . . . . . Follow-up Attacks 5 | . . . . 5 Damage Inflicted 2273 | 33 128 363 914 835 Guns 1668 | 33 128 363 914 230 Cannons . | . . . . . Explosions . | . . . . . Melee 605 | . . . . 605 Ramming . | . . . . . Kinetic 1361 | . 9 208 914 230 Thermal 307 | 33 119 155 . . Explosive . | . . . . . Electromagnetic . | . . . . . Impact . | . . . . . Slashing 605 | . . . . 605 Piercing . | . . . . . Highest Corruption 1 | . . . . 1 Average Corruption 1 | . . . . 1 Corruption Purged . | . . . . . Corruption Blocked . | . . . . . Overload Shots . | . . . . . Overflow Damage 34 | . . . . 34 Projectiles . | . . . . . Explosions . | . . . . . Melee 34 | . . . . 34 Knockbacks . | . . . . . Impact . | . . . . . Kinetic . | . . . . . Secondary . | . . . . . Self-Inflicted Damage . | . . . . . Shots . | . . . . . Rammed . | . . . . . Targets Rammed . | . . . . . Kicked . | . . . . . Crushed . | . . . . . Highest Temperature 294 | 9 102 269 294 105 Average Temperature 84 | 4 27 114 98 44 Received Heat Transfer 467 | . 12 66 243 146 Effects 3 | . . . 3 . Energy Bleed 1 | . . . 1 . Interference 2 | . . . 2 . Siege Activations . | . . . . . Martial Activations . | . . . . . Shielding Activations . | . . . . . Robots Disrupted . | . . . . . Combat Hostiles . | . . . . . Robots Corrupted . | . . . . . Combat Hostiles . | . . . . . Parts Fried . | . . . . . Impact Corruptions . | . . . . . Robots Melted . | . . . . . Combat Hostiles . | . . . . . Parts Melted . | . . . . . Heat Transferred 700 | 75 275 350 . . Parts Sabotaged . | . . . . . Parts Stolen . | . . . . . Parts Stripped . | . . . . . Power Chain Reactions . | . . . . . Alert | -11 -10 -9 -8 -7 ------- Run | Yrd Mat Mat Mat Fac Maximum Alert Level 1 | . . 1 1 1 Low Security (%) 62 | 100 100 97 38 53 Level 1 37 | . . 2 61 46 Level 2 . | . . . . . Level 3 . | . . . . . Level 4 . | . . . . . Level 5 . | . . . . . High Security . | . . . . . Max Security . | . . . . . Peak Influence 319 | 10 60 205 319 285 Initial 144 | . . 14 81 144 Average 161 | 2 24 102 222 188 Influence Increases 1129 | 10 75 271 418 355 Destroy 0b10 Robot/C 640 | . 60 180 240 160 Destroy 0b10 Robot/NC 25 | 10 5 . . 10 Destroy Leader 152 | . 10 40 60 42 Successful Hack 22 | . . 6 10 6 Select Force Hacks 30 | . . . 30 . Disable Machine 75 | . . . . 75 Destroy Structure 5 | . . . 3 2 Partial Spotted 45 | . . . 30 15 Lose Combat Pursuer 135 | . . 45 45 45 Influence Decreases 844 | 10 40 111 294 389 Entered New Map 310 | . . 21 114 175 Time Decay 534 | 10 40 90 180 214 Squads Dispatched 4 | . . . 1 3 Investigation 3 | . . . 1 2 Extermination 1 | . . . . 1 Reinforcement . | . . . . . Assault . | . . . . . Garrison . | . . . . . Intercept . | . . . . . Searches Triggered . | . . . . . Construction Impeded . | . . . . . Haulers Reinforced . | . . . . . Active Scanning Responses . | . . . . . Cargo Convoy Interrupts . | . . . . . Stealth | -11 -10 -9 -8 -7 --------- Run | Yrd Mat Mat Mat Fac Distress Signals 4 | . 1 2 1 . Communications Jammed . | . . . . . Distress Signals . | . . . . . Times Spotted 51 | . 7 12 17 15 Peak Tracking Total 6 | . 4 6 5 4 Tactical Retreats 5 | . . 2 2 1 Traps | -11 -10 -9 -8 -7 ------- Run | Yrd Mat Mat Mat Fac Traps Triggered 1 | . . 1 . . Indirectly . | . . . . . Trap Hack Attempts . | . . . . . Triggered . | . . . . . Disarmed . | . . . . . Reprogrammed . | . . . . . Reused . | . . . . . Traps Extracted . | . . . . . Installed . | . . . . . Triggered . | . . . . . Machines | -11 -10 -9 -8 -7 ---------- Run | Yrd Mat Mat Mat Fac Machines Disabled 5 | . . . . 5 Max in Single Turn 1 | . . . . 1 Machines Repaired . | . . . . . Machines Dismantled . | . . . . . Machines Sabotaged . | . . . . . Overloaded Fab Kills . | . . . . . Hacking | -11 -10 -9 -8 -7 --------- Run | Yrd Mat Mat Mat Fac Machines Accessed 7 | . . 1 3 3 Terminals 4 | . . 1 2 1 Fabricators 2 | . . . . 2 Repair Stations . | . . . . . Recycling Units . | . . . . . Scanalyzers 1 | . . . 1 . Garrison Access . | . . . . . Total Hacks 19 | . . 4 8 7 Successful 10 | . . 1 3 6 Failed 9 | . . 3 5 1 Catastrophic . | . . . . . Database Lockouts . | . . . . . Manual 11 | . . 1 8 2 Terminals 13 | . . 4 7 2 Fabricators 5 | . . . . 5 Repair Stations . | . . . . . Recycling Units . | . . . . . Scanalyzers 1 | . . . 1 . Garrison Access . | . . . . . Terminal Hacks 4 | . . 1 2 1 Part Schematic 4 | . . 1 2 1 Fabricator Hacks 5 | . . . . 5 Network Status 1 | . . . . 1 Load Schematic 2 | . . . . 2 Build 2 | . . . . 2 Repair Station Hacks . | . . . . . Recycling Unit Hacks . | . . . . . Scanalyzer . | . . . . . Garrison Access Hacks . | . . . . . Unauthorized Hacks 1 | . . . 1 . Terminals . | . . . . . Fabricators . | . . . . . Repair Stations . | . . . . . Recycling Units . | . . . . . Scanalyzers 1 | . . . 1 . Extract 1 | . . . 1 . Garrison Access . | . . . . . Data Cores Recovered . | . . . . . Used . | . . . . . Hacking Detections 6 | . . 1 2 3 Full Trace Events 4 | . . 1 1 2 Feedback Events . | . . . . . Feedback Blocked . | . . . . . Robot Schematics Acquired . | . . . . . Robots Built . | . . . . . Authchips . | . . . . . Time . | . . . . . Total Robot Build Rating . | . . . . . Part Schematics Acquired 5 | . . 1 3 1 Parts Built 4 | . . . . 4 Authchips . | . . . . . Time 104 | . . . . 104 Total Part Build Rating 10 | . . . . 10 Parts Repaired . | . . . . . Time . | . . . . . Parts Recycled . | . . . . . Recycled Matter . | . . . . . Retrieved Matter . | . . . . . Retrieved Components . | . . . . . Parts Scanalyzed . | . . . . . Part Schematics Acquired . | . . . . . Parts Damaged . | . . . . . Bothacking | -11 -10 -9 -8 -7 ------------ Run | Yrd Mat Mat Mat Fac Used RIF Installer . | . . . . . Robots Hacked . | . . . . . Non-combat . | . . . . . Combat . | . . . . . Robot Hacks Applied . | . . . . . Relay Couplers Released . | . . . . . Fabnet Peak Effective % . | . . . . . Robots Rewired . | . . . . . Allies Hacked . | . . . . . Hacks Repelled . | . . . . . Allies | -11 -10 -9 -8 -7 -------- Run | Yrd Mat Mat Mat Fac Total Allies . | . . . . . Largest Group . | . . . . . Highest-Rated Group . | . . . . . Highest-Rated Ally . | . . . . . Total Orders . | . . . . . Ally Attacks . | . . . . . Total Damage . | . . . . . Kills . | . . . . . Allies Corrupted . | . . . . . Allies Melted . | . . . . . Intel | -11 -10 -9 -8 -7 ------- Run | Yrd Mat Mat Mat Fac Active Infowar (turns) . | . . . . . Robot Analysis Total . | . . . . . Derelict Logs Recovered . | . . . . . Drone Launches . | . . . . . Drone Recoveries . | . . . . . Exploration | -11 -10 -9 -8 -7 ------------- Run | Yrd Mat Mat Mat Fac Turns Passed 1175 | 28 144 183 366 454 Spaces Moved 1345 | 26 226 196 497 400 Core 166 | 26 140 . . . Treads . | . . . . . Legs . | . . . . . Wheels . | . . . . . Hover 492 | . . . 92 400 Flight 687 | . 86 196 405 . Fastest Speed 34 | 50 37 37 34 56 Average Speed 45 | 50 45 37 39 56 Slowest Speed 60 | 50 50 37 60 56 Overloaded Moves . | . . . . . Propulsion Burnouts . | . . . . . Robots Hopped 20 | . 10 5 5 . Potential Cave-ins . | . . . . . Cave-ins Triggered . | . . . . . Exploration Rate (%) 22 | 3 37 22 39 12 Regions Visited 4 Branch Regions . Pre-discovered Areas . | . . . . . Known Exits Taken . | . . . . . Unknown Exits Taken 4 | 1 1 1 1 . Scrap Searched . | . . . . . Spaces Dug 1 | . . . . 1 Terrain Destroyed 1 | . . . . 1 Melee 1 | . . . . 1 Projectile . | . . . . . AOE . | . . . . . Terrain Rammed . | . . . . . Walls Destroyed . | . . . . . Machines Disabled . | . . . . . Actions | -11 -10 -9 -8 -7 --------- Run | Yrd Mat Mat Mat Fac Total 1696 | 31 233 263 595 574 Wait 216 | . 3 49 41 123 Move 1305 | 25 208 186 486 400 Hop 16 | . 7 4 5 . Pick Up 1 | . . . . 1 Fast Attach 12 | 2 4 1 2 3 Attach . | . . . . . Detach . | . . . . . Swap 10 | . . 1 9 . Drop 13 | . . 3 7 3 Fire 77 | 4 11 19 33 10 Melee 23 | . . . . 23 Ram . | . . . . . Kick . | . . . . . Crush . | . . . . . Escape Stasis . | . . . . . Rewire . | . . . . . Trap . | . . . . . Miscellaneous 23 | . . . 12 11 Route ------- -11/Scrapyard -10/Materials (discovered 2 exits: *Mat / [*Min]) -9/Materials -8/Materials -7/Factory (discovered 1 exit: [*Fac]) History --------- Turn | Location | Event 1 | -11/Scrapyard | Upgraded with Propulsion slot (x1) 1 | -11/Scrapyard | Upgraded with Weapon slot (x3) 22 | -11/Scrapyard | Discovered new exit (range 15) 29 | -11/Scrapyard | Entered Materials 30 | -10/Materials | Met a group of wandering Federalists 77 | -10/Materials | Discovered new exit (range 10) 157 | -10/Materials | Discovered new exit (range 15) 173 | -10/Materials | Entered another Materials area 175 | -9/Materials | Reached level 2 311 | -9/Materials | Discovered new exit (range 6) 327 | -9/Materials | Core integrity fell below 50% 356 | -9/Materials | Entered another Materials area 357 | -8/Materials | Core integrity fell below 50% 358 | -8/Materials | Reached level 3 380 | -8/Materials | Reached level 4 482 | -8/Materials | Core integrity fell below 20% 694 | -8/Materials | Reached level 5 719 | -8/Materials | Discovered new exit (range 5) 722 | -8/Materials | Entered Factory 723 | -7/Factory | Core integrity fell below 50% 724 | -7/Factory | Reached level 6 785 | -7/Factory | Build established: Hacker-Gunner 788 | -7/Factory | Fabricated Shield Generator (x2) 984 | -7/Factory | Fabricated Katana? 1129 | -7/Factory | Discovered new exit (range 15) 1149 | -7/Factory | Core integrity fell below 20% 1163 | -7/Factory | Reached level 7 1176 | -7/Factory | Destroyed by Y-54 Guardian with Flak Gun Last Messages --------------- 4F. Pressure Siphon disabled. EXIT=FOUND Slug penetrates Wall. Penetrated by Slug. U-05 Engineer builds a Wall. Sneak attack on U-05 Engineer. Destroyed Wheel. Destroyed Welding Torch. Sneak attack on U-05 Engineer. Katana follow-up attack on U-05 Engineer. U-05 Engineer destroyed. K-01 Serf collects debris. Slug penetrates Wall. K-01 Serf destroyed. Katana follow-up attack on P-60 Hacker. P-60 Hacker Remote Datajack severed. Reached level 7. P-60 Hacker destroyed. Slug penetrates Wall. Map ----- +----------------------------------------------------+ | ?????????????????????????????????????????????????? | | ?????????????????????????????????????????????????? | | ?????????????????????????????????????????????????? | | ?????????????????????????????????????????????????? | | ?????????????????????????????????????????????????? | | ?????????????????????????????????????????????????? | | ??????????????????????H??????????????????????????? | | ?????????????????????????????????????????????????? | | ?????????????????????????????????????????????????? | | ?????????????????????????????????????????????????? | | ?????????????????????????????????????????????????? | | ?????????????????????????????????????????????????? | | ?????????????????????????????????????????????????? | | ?????????????????????????????????????????????????? | | ?????????????????????????????????????????????????? | | ?????????????????????????????????????????? #?????? | | ??????????????????????#############?###### #?????? | | ??????????????????????? * [ "?" #?????? | | ??????????????????????? "?" #?????? | | ???????????????????????? ? #?????? | | ????????????????????????# """ """ #?????? | | ???????????###########??# """ """ #?????? | | ???????????? !]!?# ] """ """ #?????? | | ?????????????""" !] # """ ??????? | | ?????????????""" ]] # ???????? | | ?????????????""" Y@ """ """ ????????? | | ???????????# # """ """ #?????????? | | ?????????????############m##] ""% %"" #?????????? | | ?????????????????????#%|% ## """ """ !## ??###### | | ?????????????????????#!##### ## # | | ?????????????????????#!#???# ## + | | ????????##############%###?#####+#### #????# | | ??????? %!!= #??????????# #????# | | ??????? =!* #??????????+ #????# | | ??????? #??????????## ##+#?### | | ??????? | #???????????# #???# | | ??????? #???????????# #???# | | ????????############# ##???????????# #???# | | ????????????????????# #????????????# #???# | | ????????????????????# #????######### #???# | | ????????????????????# #??# #???# | | ????????????????????# #??# ######## #???# | | ???????????????????? ????????????# #???# | | ???????????????????? ????????????# #???# | | ???????????????????# < ???????######+##+##### | | ???????????????????# ???????# ## ^^ | | ???????????????????# ???????# """" """ ## ^ | | ???????????????????###### ??????# """" """ ## | | ????????????????????????? ??????# """" """ # | | ????????????????????????????????# """ # | +----------------------------------------------------+ Best States ------------- Heat Dissipation 25 Energy Generation 12 Energy Capacity 265 Matter Stores 300 Matter Capacity 300 Sight Range 16 Terrain Scan Density 10 Evasion (%) 63 Offensive Hacking 30 Item Schematics ----------------- Shield Generator | -9/Materials | Hacked Cooling System | -8/Materials | Extracted Katana | -8/Materials | Hacked Actuator Array | -8/Materials | Hacked Microactuators | -7/Factory | Hacked Robot Schematics ------------------ None Fabricated ------------ Shield Generator | x2 | -7/Factory Katana | x2 | -7/Factory Repaired ---------- Nothing Alien Tech Used ----------------- None Achievements -------------- None Challenges ------------ None RPGLIKE | -11 -10 -9 -8 -7 --------- Run | Yrd Mat Mat Mat Fac Levels Raised 6 | . . 1 3 2 XP Earned 12035 | 3000 350 2630 3150 2905 XP Spent 7610 | 3000 . 1200 1960 1450 Upgrades 16 | 5 . 3 6 2 Propulsion Slot 1 | 1 . . . . Weapon Slot 3 | 3 . . . . Core Integrity 4 | . . . 4 . Mass Support 1 | 1 . . . . Inventory Capacity 1 | . . . . 1 Hack Attack % 6 | . . 3 2 1 Protomatter Created 193 | . 13 . 103 77 Integrity Restored 498 | . . . 267 231 Core 498 | . . . 267 231 Protomatter Decayed 14 | . . . 14 . Game ------ Seed LongswordConceptAnalyzer Manual? 0 Play Time 00:18:49 Cumulative 296.2 hours Start 2025.06.15 @ 01:10:45 End 2025.06.15 @ 12:40:38 Sessions 2 Manual Loads 0 Difficulty Rogue Special Mode Winter2019/RPGLIKE Game No. 291 Rogue 102 Adventurer 177 Explorer 12 Win Type - Total 66 Types 19/1/16/2/12/0/4/6/0/6 Lore% 57 Gallery% 56 Achievement% 72 Wizard Run 0 Options --------- Layout 0 ASCII 0 Keyboard 0 Movement Numpad Keybinds 0 Fullscreen 2 Font 12/Smallcaps Map View 83x54 Zoom Use 0% Tactical HUD 0 Map Filters NONE Filters NONE Steam 1 RUN: fd2e96cf-17de-4f0c-8dad-bce109adec42